Cogmind - Beta 12 @@@ ROGUE MODE // 2023.03.07 @ 14:47:23 Player: Inkie Result: Escaped! Performance ------------- Evolutions (9) 4500 Regions Visited (25) 5000 Robots Destroyed (64) 320 Value Destroyed (1610) 1610 Prototype IDs (225) 4500 Alien Tech Used (13) 2600 Bonus (14533) 14533 TOTAL SCORE: 33063 Bonus ------- Pacifist 200 High Alert Combat Kills 33 Entered Garrisons 200 Used RIF Installer 500 Met Data Miner 300 Used Data Conduit 3000 Met Zhirov 300 Found Hidden Lab 3000 Decrypted A0 Command 3000 Scanned by Researcher 500 Pursued by Intercept 500 Win 3000 Cogmind --------- Core Integrity 1336/1600 Matter 29/300 Energy 335/350 System Corruption 0% Temperature Cool (30) Movement Flying (16) Location To Epsilon Eridani Parts ------- > --- POWER (1) -------- Quantum Reactor > --- PROPULSION (7) --- Biomechanical Wings Impulse Thruster Cooled Field Propulsion Drive Cooled Impulse Thruster Cooled Impulse Thruster Cooled Q-thruster Experimental Q-thruster > --- UTILITY (15) ----- Large Storage Unit Gravity Neutralizer Enhanced Optical Array Experimental Propulsion Shielding System Mapper Deep Network Scanner > --- WEAPON (2) ------- (None) > --- INVENTORY (15) --- Improved Fusion Compressor Quantum Reactor Experimental Force Field Experimental Force Field Transdimensional Reconstructor Microwarp Drive Warp Cannon L-Cannon (25) Peak State ------------ > --- POWER ------------ Light Quantum Reactor > --- PROPULSION ------- Biomechanical Wings Cooled Field Propulsion Drive Cooled Field Propulsion Drive Cooled Impulse Thruster Cooled Impulse Thruster Cooled Impulse Thruster Cooled Q-thruster > --- UTILITY ---------- Large Storage Unit Gravity Neutralizer Enhanced Optical Array Stasis Canceller Improved Reaction Control System System Mapper Deep Network Scanner Quantum Router Microwarp Drive LC Capacitor > --- WEAPON ----------- (None) > --- INVENTORY -------- Seismic Detector Experimental Force Field Authchip [Propulsion] Authchip [Propulsion] Relay Coupler [Proto] Relay Coupler [Proto] Relay Coupler [Proto] Relay Coupler [Proto] Dimensional Node Initializer Transdimensional Reconstructor Transdimensional Reconstructor Core Membrane Subatomic Replicator Warp Cannon Guided Remote Datajack [Rating: 203] Favorites ----------- Power Heavy Ion Engine Engine Heavy Ion Engine Power Core Fusion Compressor Reactor Heavy Antimatter Reactor Propulsion Light Treads Treads Light Treads Flight Unit Cooled Impulse Thruster Utility Hacking Suite Device Cooling System Storage High-capacity Storage Unit Processor Enhanced Optical Array Hackware Hacking Suite Protection Improved Medium Armor Plating Artifact LC Capacitor Weapon Ion Cannon Energy Gun Improved Medium Laser Energy Cannon Ion Cannon Ballistic Gun Assault Rifle Launcher Grenade Launcher Special Weapon Guided Remote Datajack Slashing Weapon Greatsword Piercing Weapon Heavy Pick Build | -11 -10 -9 -8 -7 -7 -6 -6 -6 -6 -5 -5 -5 -5 -5 -4 -4 -4 -4 -3 -3 -2 -2 -2 -1 -1 ------- Run | Jun Mat Mat Mat Fac Sto Fac Low Low Dat Pro Fac Upp Upp Zhi Pro Fac Arm Lab Res Gar Res Qua Sec Acc Com Slots Evolved 18 | . . 2 2 2 . 2 . . . . 2 . . . . 2 . . 2 . 2 . . 2 . Power . | . . . . . . . . . . . . . . . . . . . . . . . . . . Propulsion 5 | . . . 2 . . 2 . . . . . . . . . . . . 1 . . . . . . Utility 13 | . . 2 . 2 . . . . . . 2 . . . . 2 . . 1 . 2 . . 2 . Weapon . | . . . . . . . . . . . . . . . . . . . . . . . . . . Parts Attached 195 | 6 1 18 8 41 2 21 8 3 2 6 9 . 1 2 5 2 7 9 6 1 6 8 15 7 1 Power 19 | 1 . 1 . 4 . 4 . . . . 2 . 1 1 . . 1 . 1 . 1 . . 1 1 Engine 9 | 1 . 1 . 4 . 3 . . . . . . . . . . . . . . . . . . . Core 4 | . . . . . . 1 . . . . 2 . 1 . . . . . . . . . . . . Reactor 6 | . . . . . . . . . . . . . . 1 . . 1 . 1 . 1 . . 1 1 Propulsion 33 | 2 . 4 2 9 . 6 . . . 4 . . . . . . . . 1 . 2 . . 3 . Treads 8 | 2 . 4 2 . . . . . . . . . . . . . . . . . . . . . . Leg . | . . . . . . . . . . . . . . . . . . . . . . . . . . Wheel . | . . . . . . . . . . . . . . . . . . . . . . . . . . Hover . | . . . . . . . . . . . . . . . . . . . . . . . . . . Flight 25 | . . . . 9 . 6 . . . 4 . . . . . . . . 1 . 2 . . 3 . Utility 97 | 1 1 2 2 19 2 11 8 2 1 2 7 . . 1 3 2 5 5 4 1 3 5 7 3 . Device 47 | . . 1 . 7 1 4 8 2 . 1 . . . . 2 2 5 4 3 1 . 3 1 2 . Storage 4 | 1 1 . . . . 1 . . . . . . . . 1 . . . . . . . . . . Processor 5 | . . . . 3 . 1 . . 1 . . . . . . . . . . . . . . . . Hackware 18 | . . . . 4 . 3 . . . . 5 . . . . . . . 1 . 1 . 4 . . Protection 19 | . . 1 2 5 1 2 . . . 1 2 . . 1 . . . . . . 2 1 . 1 . Artifact 4 | . . . . . . . . . . . . . . . . . . 1 . . . 1 2 . . Weapon 46 | 2 . 11 4 9 . . . 1 1 . . . . . 2 . 1 4 . . . 3 8 . . Energy Gun 1 | . . 1 . . . . . . . . . . . . . . . . . . . . . . . Energy Cannon 21 | . . 3 3 3 . . . . . . . . . . 2 . . 2 . . . 3 5 . . Ballistic Gun 6 | 2 . 4 . . . . . . . . . . . . . . . . . . . . . . . Ballistic Cannon . | . . . . . . . . . . . . . . . . . . . . . . . . . . Launcher 5 | . . 3 1 1 . . . . . . . . . . . . . . . . . . . . . Special Weapon 3 | . . . . 1 . . . . . . . . . . . . . 1 . . . . 1 . . Impact Weapon . | . . . . . . . . . . . . . . . . . . . . . . . . . . Slashing Weapon 6 | . . . . 3 . . . 1 . . . . . . . . 1 1 . . . . . . . Piercing Weapon 4 | . . . . 1 . . . . 1 . . . . . . . . . . . . . 2 . . Special Melee Weapon . | . . . . . . . . . . . . . . . . . . . . . . . . . . Unidentified Prototypes 28 | . . 2 . 3 . 2 . . . . 3 . . 1 . . 1 6 1 . . 2 3 . 4 Parts Lost 27 | . . 1 . 11 . . . . 1 . . 1 . . . . . . . . . 4 2 6 1 Power 4 | . . 1 . 1 . . . . . . . 1 . . . . . . . . . . 1 . . Propulsion 6 | . . . . 4 . . . . . . . . . . . . . . . . . . . 2 . Utility 12 | . . . . 4 . . . . 1 . . . . . . . . . . . . 3 1 2 1 Weapon 5 | . . . . 2 . . . . . . . . . . . . . . . . . 1 . 2 . Highest Loss Streak 9 | . . 1 . 9 . . . . 1 . . 1 . . . . . . . . . 4 1 6 1 To Critical Strikes . | . . . . . . . . . . . . . . . . . . . . . . . . . . Average Slot Usage (%) 86 | . 85 81 92 89 92 86 91 90 93 92 93 90 92 94 94 88 94 89 81 85 79 83 76 62 58 Engine 5 | . 14 11 9 5 7 4 . . . . . . . . . . . . . . . . . . . Treads 12 | . 28 22 31 16 . . . . . . . . . . . . . . . . . . . . . Flight 16 | . . . . 9 30 34 40 40 40 40 35 35 35 35 35 31 31 31 33 33 30 30 30 26 28 Device 8 | . . 7 9 5 15 11 6 19 13 12 2 . . . 7 14 21 15 9 9 8 9 10 10 6 Storage 6 | . 14 11 9 4 . . 6 6 6 6 5 5 5 5 5 5 5 5 4 4 4 4 4 4 4 Processor 4 | . . . . 10 15 11 6 6 13 6 5 5 5 5 5 5 5 5 4 4 4 4 4 4 4 Hackware 9 | . . . . 12 7 9 20 6 6 6 26 29 29 29 25 21 21 17 14 19 17 14 14 9 8 Protection 6 | . . 8 16 9 6 3 . . . 5 5 5 5 5 . . . . . . . 6 . . 4 Energy Cannon 6 | . . 14 17 6 . . . . . . . . . . . . . . . . . . . . . Ballistic Gun 2 | . 28 7 . . . . . . . . . . . . . . . . . . . . . . . Slashing Weapon 2 | . . . . 4 7 6 4 3 . . . . . . . . 4 4 4 4 4 3 . . . Naked Turns . | . . . . . . . . . . . . . . . . . . . . . . . . . . Heaviest Build 98 | 13 53 77 80 98 17 22 22 24 24 25 25 22 31 35 42 56 47 63 61 56 60 60 68 47 41 Greatest Support 80 | 40 40 40 80 80 21 37 32 32 32 39 39 39 39 39 51 51 51 51 58 58 61 75 75 60 69 Greatest Overweight (x) 4 | . 1 1 1 4 . . . . . . . . . . . 1 . 1 1 . . . 1 . . Average Overweight (x) . | . . 1 . . . . . . . . . . . . . . . . . . . . . . . Largest Inventory Capacity 20 | 8 20 20 20 20 5 10 10 10 10 10 10 10 10 10 15 15 15 15 15 15 15 15 15 15 15 Average Capacity 14 | 6 17 20 20 13 5 5 10 10 10 10 10 10 10 10 12 15 15 15 15 15 15 15 15 15 15 Most Carried 20 | 1 3 20 20 20 5 6 9 10 10 10 10 10 10 10 11 12 11 15 15 15 15 15 15 15 14 Average Carried 12 | . 2 16 19 13 5 4 7 8 9 8 9 10 10 9 10 11 10 13 14 13 14 13 13 14 11 Final Capacity 20 | 8 20 20 20 5 5 10 10 10 10 10 10 10 10 10 15 15 15 15 15 15 15 15 15 15 15 Final Carried 20 | 1 3 20 20 5 5 6 9 9 10 10 10 10 10 10 11 12 10 14 14 15 13 14 13 15 12 Class Distribution -------------------- 32% | Mutant 17% | Scavenger-Mutant 17% | Wizard-Sprinter 14% | Hacker-Sprinter 9% | Sprinter Dominant Class ---------------- Mutant | -10/Materials Mutant | -9/Materials Scavenger-Mutant | -8/Materials Scavenger-Mutant | -7/Factory Scout | -7/Storage Sprinter | -6/Factory Hacker-Sprinter | -6/Lower Caves Sprinter | -6/Lower Caves Sprinter | -6/Data Miner Sprinter | -5/Proximity Caves Sprinter | -5/Factory Wizard-Sprinter | -5/Upper Caves Wizard-Sprinter | -5/Upper Caves Wizard-Sprinter | -5/Zhirov Wizard-Sprinter | -4/Proximity Caves Wizard-Sprinter | -4/Factory Wizard-Sprinter | -4/Armory Wizard-Mutant | -4/Lab Wizard-Sprinter | -3/Research Wizard-Sprinter | -3/Garrison Wizard-Sprinter | -2/Research Wizard-Sprinter | -2/Quarantine Hacker-Sprinter | -2/Section 7 Hacker-Sprinter | -1/Access Hacker-Sprinter | -1/Command Resources | -11 -10 -9 -8 -7 -7 -6 -6 -6 -6 -5 -5 -5 -5 -5 -4 -4 -4 -4 -3 -3 -2 -2 -2 -1 -1 ----------- Run | Jun Mat Mat Mat Fac Sto Fac Low Low Dat Pro Fac Upp Upp Zhi Pro Fac Arm Lab Res Gar Res Qua Sec Acc Com Matter Collected 2810 | 219 . 481 67 272 169 159 194 420 28 198 81 33 76 . 21 . . . 63 . 156 9 161 3 . Remotely . | . . . . . . . . . . . . . . . . . . . . . . . . . . Salvage Created 3137 | . . 911 208 479 20 407 173 378 28 276 . 29 . . . . . . . . 156 . 72 . . Parts 156 | . . 70 11 31 2 8 1 16 3 3 . 1 . . . . . . . . 7 . 3 . . Haulers Intercepted 4 | . . 3 . . . 1 . . . . . . . . . . . . . . . . . . . Recyclers Shooed . | . . . . . . . . . . . . . . . . . . . . . . . . . . Parts Field Recycled . | . . . . . . . . . . . . . . . . . . . . . . . . . . Retrieved Matter . | . . . . . . . . . . . . . . . . . . . . . . . . . . Parts Self-Destructed 3 | . . . . . . . . . . 3 . . . . . . . . . . . . . . . Prevented . | . . . . . . . . . . . . . . . . . . . . . . . . . . Kills | -11 -10 -9 -8 -7 -7 -6 -6 -6 -6 -5 -5 -5 -5 -5 -4 -4 -4 -4 -3 -3 -2 -2 -2 -1 -1 ------- Run | Jun Mat Mat Mat Fac Sto Fac Low Low Dat Pro Fac Upp Upp Zhi Pro Fac Arm Lab Res Gar Res Qua Sec Acc Com Combat Hostiles Destroyed 38 | . . 22 6 9 . . . . . 1 . . . . . . . . . . . . . . . Melee 2 | . . . . 1 . . . . . 1 . . . . . . . . . . . . . . . Guns 4 | . . 4 . . . . . . . . . . . . . . . . . . . . . . . Cannons 20 | . . 10 3 7 . . . . . . . . . . . . . . . . . . . . . AOE 11 | . . 8 3 . . . . . . . . . . . . . . . . . . . . . . Classes Destroyed 14 | . . 8 . 3 . 1 . . . 1 . . . . . . . . . . 1 . . . . Worker 5 | . . 3 1 . . . . . . . . . . . . . . . . . . . 1 . . Builder 4 | . . . . 3 . . . . . . . . . . . . . . . . 1 . . . . Tunneler 1 | . . . . . . . . . . . . . . . . . . . . . 1 . . . . Hauler 4 | . . 3 . . . 1 . . . . . . . . . . . . . . . . . . . Recycler 3 | . . . . . . 2 . . . . . . . . . . . . . . 1 . . . . Mechanic 1 | . . 1 . . . . . . . . . . . . . . . . . . . . . . . Operator 5 | . . 2 . 1 1 1 . . . . . . . . . . . . . . . . . . . Drone 1 | . . . . . . . . . . 1 . . . . . . . . . . . . . . . Watcher 2 | . . 1 . . . . . . . . . . . . . . . . . . . . 1 . . Swarmer 12 | . . 9 3 . . . . . . . . . . . . . . . . . . . . . . Grunt 15 | . . 7 2 6 . . . . . . . . . . . . . . . . . . . . . Duelist 1 | . . . . 1 . . . . . . . . . . . . . . . . . . . . . Sentry 8 | . . 6 1 1 . . . . . . . . . . . . . . . . . . . . . Programmer 1 | . . . . 1 . . . . . . . . . . . . . . . . . . . . . Decomposer 5 | . . . . . . . 2 2 . . . 1 . . . . . . . . . . . . . Best Kill Streak 7 | . . 7 4 6 1 2 . . 1 1 . . . . . . . . . . 3 . 1 . . Combat Bots Only 4 | . . 4 3 4 . . . . . 1 . . . . . . . . . . . . . . . Max Kills in Single Turn 3 | . . 2 3 1 1 1 1 1 1 1 . 1 . . . . . . . . 1 . 1 . . Gunslinging . | . . . . . . . . . . . . . . . . . . . . . . . . . . Exploded 2 | . . 2 2 . . . . . . . . . . . . . . . . . . . . . . Melee 1 | . . . . 1 . . . . . 1 . . . . . . . . . . . . . . . Uniques/NPCs Destroyed 1 | . . . . . . . . . 1 . . . . . . . . . . . . . . . . Data Miner (-6/Data Miner) Combat | -11 -10 -9 -8 -7 -7 -6 -6 -6 -6 -5 -5 -5 -5 -5 -4 -4 -4 -4 -3 -3 -2 -2 -2 -1 -1 -------- Run | Jun Mat Mat Mat Fac Sto Fac Low Low Dat Pro Fac Upp Upp Zhi Pro Fac Arm Lab Res Gar Res Qua Sec Acc Com Damage Taken 6034 | . . 576 105 2045 144 280 78 . 95 . 37 115 85 . . 70 12 28 . . 145 883 506 785 45 Core 1574 | . . 67 . 407 84 105 31 . . . . 58 20 . . 70 . . . . . 313 155 245 19 Absorbed by Shields 24 | . . . . . . . . . . . . . . . . 14 . . . . . . . 10 . Redirected to Shielding 269 | . . . . . . . . . . . . . . . . . . . . . . 269 . . . Regen/Repaired (Parts) 690 | . . . . . . . . . . . . . . . . . . . . . . . 690 . . Core Remaining (%) 84 | 100 100 83 100 . 29 . . . . 84 . . . . 92 . . 100 . 100 . . 55 . 83 Volleys Fired 121 | . . 53 12 33 . . . . . . . . . . 6 . . 1 . . . 4 12 . . Largest 2 | . . 2 2 2 . . . . . . . . . . 1 . . 1 . . . 1 1 . . Hottest 130 | . . 120 130 130 . . . . . . . . . . 105 . . 10 . . . 100 100 . . Shots Fired 202 | . . 97 22 60 . . . . . . . . . . 6 . . 1 . . . 4 12 . . Gun 36 | . . 36 . . . . . . . . . . . . . . . . . . . . . . . Cannon 146 | . . 52 20 56 . . . . . . . . . . 6 . . . . . . 4 8 . . Launcher 13 | . . 9 2 2 . . . . . . . . . . . . . . . . . . . . . Special 7 | . . . . 2 . . . . . . . . . . . . . 1 . . . . 4 . . Kinetic 36 | . . 36 . . . . . . . . . . . . . . . . . . . . . . . Thermal 148 | . . 52 20 58 . . . . . . . . . . 6 . . . . . . 4 8 . . Explosive 13 | . . 9 2 2 . . . . . . . . . . . . . . . . . . . . . Electromagnetic . | . . . . . . . . . . . . . . . . . . . . . . . . . . Robot Hit Streak 13 | . . 13 3 11 . . . . . . . . . . . . . . . . . . 11 . . Robot Miss Streak 4 | . . 2 4 3 . . . . . . . . . . . . . . . . . . . . . Penetration Max . | . . . . . . . . . . . . . . . . . . . . . . . . . . Secondary Targets 1 | . . 1 . . . . . . . . . . . . . . . . . . . . . . . Max Gunslinging Chain 1 | . . 1 . . . . . . . . . . . . . . . . . . . . . . . Shots Hit Robots 159 | . . 63 7 51 1 8 5 11 1 5 . 1 . . . . . . . . 3 . 3 . . Core Hits 86 | . . 38 10 23 . 2 2 4 1 3 . . . . . . . . . . . . 3 . . Critical Kills . | . . . . . . . . . . . . . . . . . . . . . . . . . . Critical Parts Destroyed . | . . . . . . . . . . . . . . . . . . . . . . . . . . Critical Strikes 1 | . . . . 1 . . . . . . . . . . . . . . . . . . . . . Impale 1 | . . . . 1 . . . . . . . . . . . . . . . . . . . . . Melee Attacks 158 | . . . . 30 5 16 9 21 5 5 1 2 . . 3 2 4 15 3 6 8 9 9 5 . Impact . | . . . . . . . . . . . . . . . . . . . . . . . . . . Slashing 124 | . . . . 28 5 16 9 21 . . . . . . . . 4 15 3 6 8 9 . . . Piercing 34 | . . . . 2 . . . . 5 5 1 2 . . 3 2 . . . . . . 9 5 . Sneak Attacks 18 | . . . . 3 1 4 2 2 1 1 . 1 . . . . . . . . 3 . . . . Combat Hostiles 1 | . . . . . . . . . . 1 . . . . . . . . . . . . . . . Follow-up Attacks . | . . . . . . . . . . . . . . . . . . . . . . . . . . Damage Inflicted 7598 | . . 1686 286 1829 111 737 522 1250 103 492 . 84 . . . . . . . . 279 . 219 . . Guns 350 | . . 350 . . . . . . . . . . . . . . . . . . . . . . . Cannons 2276 | . . 823 193 1260 . . . . . . . . . . . . . . . . . . . . . Explosions 751 | . . 513 93 145 . . . . . . . . . . . . . . . . . . . . . Melee 4174 | . . . . 424 111 737 522 1250 103 492 . 84 . . . . . . . . 279 . 172 . . Ramming 47 | . . . . . . . . . . . . . . . . . . . . . . . 47 . . Kinetic 350 | . . 350 . . . . . . . . . . . . . . . . . . . . . . . Thermal 2276 | . . 823 193 1260 . . . . . . . . . . . . . . . . . . . . . Explosive 751 | . . 513 93 145 . . . . . . . . . . . . . . . . . . . . . Electromagnetic . | . . . . . . . . . . . . . . . . . . . . . . . . . . Impact . | . . . . . . . . . . . . . . . . . . . . . . . . . . Slashing 3247 | . . . . 348 111 737 522 1250 . . . . . . . . . . . . 279 . . . . Piercing 927 | . . . . 76 . . . . 103 492 . 84 . . . . . . . . . . 172 . . Highest Corruption 8 | . . 5 . 1 1 1 1 1 1 1 . . . . . . . . . . . . 8 . . Average Corruption 3 | . . 5 . 1 1 1 1 1 1 1 . . . . . . . . . . . . 6 . . Corruption Purged 1 | . . . . . 1 . . . . . . . . . . . . . . . . . . . . Corruption Blocked . | . . . . . . . . . . . . . . . . . . . . . . . . . . Effects 34 | . . 21 . 2 . 1 2 3 . 1 . . . . . . . . . . . . 4 . . Message Errors 6 | . . 4 . 1 . . . 1 . . . . . . . . . . . . . . . . . Matter Fused 10 | . . 7 . 1 . . 1 . . . . . . . . . . . . . . . 1 . . Heat Flow Errors 4 | . . 3 . . . . . 1 . . . . . . . . . . . . . . . . . Energy Discharges 3 | . . 3 . . . . . . . . . . . . . . . . . . . . . . . Parts Rejected 2 | . . . . . . 1 . . . . . . . . . . . . . . . . 1 . . Data Loss (minor) 7 | . . 3 . . . . . 1 . 1 . . . . . . . . . . . . 2 . . Data Loss (major) 2 | . . 1 . . . . 1 . . . . . . . . . . . . . . . . . . Overload Shots . | . . . . . . . . . . . . . . . . . . . . . . . . . . Overflow Damage 1905 | . . 20 . 210 61 313 239 692 . 126 . 65 . . . . . . . . 179 . . . . Projectiles 35 | . . 18 . 17 . . . . . . . . . . . . . . . . . . . . . Explosions 2 | . . 2 . . . . . . . . . . . . . . . . . . . . . . . Melee 1868 | . . . . 193 61 313 239 692 . 126 . 65 . . . . . . . . 179 . . . . Knockbacks . | . . . . . . . . . . . . . . . . . . . . . . . . . . Impact . | . . . . . . . . . . . . . . . . . . . . . . . . . . Kinetic . | . . . . . . . . . . . . . . . . . . . . . . . . . . Secondary . | . . . . . . . . . . . . . . . . . . . . . . . . . . Self-Inflicted Damage 55 | . . . . 32 . . . . . . . . . . . . . . . . . . 23 . . Shots 1 | . . . . 1 . . . . . . . . . . . . . . . . . . . . . Rammed 1 | . . . . . . . . . . . . . . . . . . . . . . . 1 . . Targets Rammed 1 | . . . . . . . . . . . . . . . . . . . . . . . 1 . . Kicked . | . . . . . . . . . . . . . . . . . . . . . . . . . . Crushed . | . . . . . . . . . . . . . . . . . . . . . . . . . . Highest Temperature 465 | . . 251 23 316 25 212 84 204 66 193 48 68 . . 126 . . . . . . 65 465 . 4 Average Temperature 62 | . . 26 12 88 11 49 25 95 26 76 13 32 . . 62 . . . . . . 41 148 . 3 Received Heat Transfer 1323 | . . 210 36 804 63 36 . . . . 18 18 30 . . 9 . . . . . 9 9 81 . Effects 5 | . . . . . . . . . . . . . . . . . . . . . . . 5 . . Shutdowns 1 | . . . . . . . . . . . . . . . . . . . . . . . 1 . . Energy Bleed 1 | . . . . . . . . . . . . . . . . . . . . . . . 1 . . Damage (major) 3 | . . . . . . . . . . . . . . . . . . . . . . . 3 . . Siege Activations . | . . . . . . . . . . . . . . . . . . . . . . . . . . Robots Corrupted . | . . . . . . . . . . . . . . . . . . . . . . . . . . Combat Hostiles . | . . . . . . . . . . . . . . . . . . . . . . . . . . Parts Fried . | . . . . . . . . . . . . . . . . . . . . . . . . . . Impact Corruptions . | . . . . . . . . . . . . . . . . . . . . . . . . . . Robots Melted 1 | . . . . 1 . . . . . . . . . . . . . . . . . . . . . Combat Hostiles 1 | . . . . 1 . . . . . . . . . . . . . . . . . . . . . Parts Melted 4 | . . 3 . 1 . . . . . . . . . . . . . . . . . . . . . Heat Transferred 3330 | . . 1295 296 1739 . . . . . . . . . . . . . . . . . . . . . Parts Sabotaged . | . . . . . . . . . . . . . . . . . . . . . . . . . . Parts Stolen . | . . . . . . . . . . . . . . . . . . . . . . . . . . Parts Stripped . | . . . . . . . . . . . . . . . . . . . . . . . . . . Power Chain Reactions . | . . . . . . . . . . . . . . . . . . . . . . . . . . Missiles Intercepted . | . . . . . . . . . . . . . . . . . . . . . . . . . . Alert | -11 -10 -9 -8 -7 -7 -6 -6 -6 -6 -5 -5 -5 -5 -5 -4 -4 -4 -4 -3 -3 -2 -2 -2 -1 -1 ------- Run | Jun Mat Mat Mat Fac Sto Fac Low Low Dat Pro Fac Upp Upp Zhi Pro Fac Arm Lab Res Gar Res Qua Sec Acc Com Peak Influence 532 | . . 455 279 308 311 375 . . . . 39 . . . . 47 45 . 21 54 170 201 360 532 355 Initial 340 | . . . 136 76 139 141 . . . . 12 . . . . . 22 . . 15 30 95 42 209 340 Average 183 | . . 276 178 122 221 224 . . . . 22 . . . . 19 38 . 8 30 73 98 233 348 344 Maximum Alert Level 2 | . . 2 1 1 1 1 . . . . . . . . . . . . . . . 1 1 2 1 Low Security (%) 54 | 100 100 17 45 87 50 47 . . . . 100 . . . . 100 100 . 100 100 100 98 45 . . Level 1 39 | . . 66 54 12 49 52 . . . . . . . . . . . . . . . 1 54 61 100 Level 2 5 | . . 15 . . . . . . . . . . . . . . . . . . . . . 38 . Level 3 . | . . . . . . . . . . . . . . . . . . . . . . . . . . Level 4 . | . . . . . . . . . . . . . . . . . . . . . . . . . . Level 5 . | . . . . . . . . . . . . . . . . . . . . . . . . . . High Security . | . . . . . . . . . . . . . . . . . . . . . . . . . . Max Security . | . . . . . . . . . . . . . . . . . . . . . . . . . . Squads Dispatched 30 | . . 2 1 7 . 5 . . . . 1 . . . . 1 . . . . 1 3 7 2 . Investigation 11 | . . . . 2 . 5 . . . . 1 . . . . 1 . . . . 1 . . 1 . Extermination 2 | . . . . 2 . . . . . . . . . . . . . . . . . . . . . Reinforcement 11 | . . 2 1 3 . . . . . . . . . . . . . . . . . 3 1 1 . Assault . | . . . . . . . . . . . . . . . . . . . . . . . . . . Garrison . | . . . . . . . . . . . . . . . . . . . . . . . . . . Intercept 6 | . . . . . . . . . . . . . . . . . . . . . . . 6 . . Searches Triggered . | . . . . . . . . . . . . . . . . . . . . . . . . . . Construction Impeded 2 | . . . . 2 . . . . . . . . . . . . . . . . . . . . . Haulers Reinforced . | . . . . . . . . . . . . . . . . . . . . . . . . . . Active Scanning Responses . | . . . . . . . . . . . . . . . . . . . . . . . . . . Cargo Convoy Interrupts . | . . . . . . . . . . . . . . . . . . . . . . . . . . Stealth | -11 -10 -9 -8 -7 -7 -6 -6 -6 -6 -5 -5 -5 -5 -5 -4 -4 -4 -4 -3 -3 -2 -2 -2 -1 -1 --------- Run | Jun Mat Mat Mat Fac Sto Fac Low Low Dat Pro Fac Upp Upp Zhi Pro Fac Arm Lab Res Gar Res Qua Sec Acc Com Distress Signals 11 | . . 6 . . 2 . . . . . . . . . . . 1 . . . . 1 . 1 . Communications Jammed . | . . . . . . . . . . . . . . . . . . . . . . . . . . Distress Signals . | . . . . . . . . . . . . . . . . . . . . . . . . . . Times Spotted 244 | . . 40 11 32 14 16 2 . 4 . 4 5 10 . . 8 7 1 1 5 6 23 19 32 4 Peak Tracking Total 19 | . . 5 5 5 7 7 2 . 4 . 4 5 10 . . 9 7 1 1 8 3 14 10 19 5 Tactical Retreats 31 | . . 1 . 9 2 3 1 . . . . 1 3 . . . . . . . 2 3 2 4 . Traps | -11 -10 -9 -8 -7 -7 -6 -6 -6 -6 -5 -5 -5 -5 -5 -4 -4 -4 -4 -3 -3 -2 -2 -2 -1 -1 ------- Run | Jun Mat Mat Mat Fac Sto Fac Low Low Dat Pro Fac Upp Upp Zhi Pro Fac Arm Lab Res Gar Res Qua Sec Acc Com Traps Triggered 13 | . . . . 2 . 2 . . . . 2 . . . . 1 1 . 1 . 1 . 3 . . Indirectly . | . . . . . . . . . . . . . . . . . . . . . . . . . . Trap Hack Attempts . | . . . . . . . . . . . . . . . . . . . . . . . . . . Triggered . | . . . . . . . . . . . . . . . . . . . . . . . . . . Disarmed . | . . . . . . . . . . . . . . . . . . . . . . . . . . Reprogrammed 11 | . . . . . . . . . . . 5 . . . . 6 . . . . . . . . . Reused 1 | . . . . . . . . . . . 1 . . . . . . . . . . . . . . Traps Extracted . | . . . . . . . . . . . . . . . . . . . . . . . . . . Installed . | . . . . . . . . . . . . . . . . . . . . . . . . . . Triggered 1 | . . . . . . . . . . . 1 . . . . . . . . . . . . . . Machines | -11 -10 -9 -8 -7 -7 -6 -6 -6 -6 -5 -5 -5 -5 -5 -4 -4 -4 -4 -3 -3 -2 -2 -2 -1 -1 ---------- Run | Jun Mat Mat Mat Fac Sto Fac Low Low Dat Pro Fac Upp Upp Zhi Pro Fac Arm Lab Res Gar Res Qua Sec Acc Com Machines Disabled 16 | . . 2 1 . 1 . . . . . . . . . . . . 3 . . . 3 6 . . Max in Single Turn 1 | . . 1 1 . 1 . . . . . . . . . . . . 1 . . . 1 1 . . Garrison Access 5 | . . . 1 . 1 . . . . . . . . . . 2 . . . . . 1 . . . Machines Repaired . | . . . . . . . . . . . . . . . . . . . . . . . . . . Machines Sabotaged . | . . . . . . . . . . . . . . . . . . . . . . . . . . Overloaded Fab Kills . | . . . . . . . . . . . . . . . . . . . . . . . . . . Hacking | -11 -10 -9 -8 -7 -7 -6 -6 -6 -6 -5 -5 -5 -5 -5 -4 -4 -4 -4 -3 -3 -2 -2 -2 -1 -1 --------- Run | Jun Mat Mat Mat Fac Sto Fac Low Low Dat Pro Fac Upp Upp Zhi Pro Fac Arm Lab Res Gar Res Qua Sec Acc Com Machines Accessed 71 | . 1 2 3 9 4 10 . 1 4 . 3 1 . 4 . 6 2 2 5 . 3 4 2 5 . Terminals 40 | . 1 2 2 6 3 6 . . . . 2 1 . . . 4 2 . 2 . 1 3 2 3 . Fabricators 11 | . . . . 2 . 4 . . . . 1 . . . . . . . . . 2 . . 2 . Repair Stations . | . . . . . . . . . . . . . . . . . . . . . . . . . . Recycling Units 1 | . . . . . . . . . . . . . . . . . . . 1 . . . . . . Scanalyzers 2 | . . . . 1 . . . . . . . . . . . . . . 1 . . . . . . Garrison Access 6 | . . . 1 . 1 . . . . . . . . . . 2 . . 1 . . 1 . . . Total Hacks 263 | . 1 8 9 32 14 22 . 1 28 . 13 1 . 13 . 27 9 23 20 . 11 19 2 10 . Successful 182 | . . 4 4 15 5 8 . 1 28 . 13 1 . 13 . 17 7 23 12 . 7 12 2 10 . Failed 79 | . 1 3 5 17 9 14 . . . . . . . . . 9 2 . 8 . 4 7 . . . Catastrophic 11 | . 1 2 . 2 1 1 . . . . . . . . . 1 . . 1 . 1 1 . . . Database Lockouts 2 | . . 1 . . . . . . . . . . . . . 1 . . . . . . . . . Manual 129 | . 1 6 6 20 10 15 . . . . 11 . . . . 17 7 . 11 . 8 15 . 2 . Terminals 149 | . 1 8 7 22 12 15 . . . . 11 1 . . . 22 9 . 14 . 5 17 2 3 . Fabricators 28 | . . . . 6 . 7 . . . . 2 . . . . . . . . . 6 . . 7 . Repair Stations . | . . . . . . . . . . . . . . . . . . . . . . . . . . Recycling Units 4 | . . . . . . . . . . . . . . . . . . . 4 . . . . . . Scanalyzers 5 | . . . . 4 . . . . . . . . . . . . . . 1 . . . . . . Garrison Access 12 | . . . 2 . 2 . . . . . . . . . . 5 . . 1 . . 2 . . . Terminal Hacks 120 | . . 2 2 3 3 1 . 1 28 . 8 1 . 13 . 12 6 23 4 . 2 6 2 3 . Record 40 | . . . . . . . . . 11 . . 1 . 5 . . 1 22 . . . . . . . Part Schematic 24 | . . . 1 . 1 . . . 11 . 2 . . 4 . 3 1 . . . 1 . . . . Robot Schematic 3 | . . . . . . . . . 3 . . . . . . . . . . . . . . . . Robot Analysis 1 | . . 1 . . . . . . . . . . . . . . . . . . . . . . . Prototype ID Bank 8 | . . . . . 1 . . . 3 . . . . 4 . . . . . . . . . . . Open Door 7 | . . . . . . . . 1 . . . . . . . . 1 . . . . . 2 3 . Level Access Points 2 | . . . . 1 . . . . . . . . . . . . . . 1 . . . . . . Branch Access Points 7 | . . 1 1 . . 1 . . . . 1 . . . . 1 . . 1 . 1 . . . . Emergency Access Points 2 | . . . . . . . . . . . 1 . . . . 1 . . . . . . . . . Machine Index 1 | . . . . 1 . . . . . . . . . . . . . . . . . . . . . Unreport Threat 2 | . . . . . . . . . . . . . . . . . . . . . . 2 . . . Locate Traps 3 | . . . . 1 . . . . . . 1 . . . . 1 . . . . . . . . . Reprogram Traps 2 | . . . . . . . . . . . 1 . . . . 1 . . . . . . . . . Maintenance Status 1 | . . . . . . . . . . . 1 . . . . . . . . . . . . . . Security Status 3 | . . . . . . . . . . . . . . . . 1 1 . 1 . . . . . . Patrol Status 4 | . . . . . . . . . . . . . . . . 1 1 . 1 . . 1 . . . Coupling Status 1 | . . . . . . . . . . . . . . . . 1 . . . . . . . . . Recall Reinforcements 1 | . . . . . . . . . . . . . . . . . . . . . . 1 . . . Hauler Manifests 3 | . . . . . 1 . . . . . 1 . . . . 1 . . . . . . . . . Zone Layout 4 | . . . . . . . . . . . . . . . . 1 1 . . . . 2 . . . Release Object 1 | . . . . . . . . . . . . . . . . . . 1 . . . . . . . Fabricator Hacks 14 | . . . . 3 . 3 . . . . 1 . . . . . . . . . 2 . . 5 . Network Status 1 | . . . . . . . . . . . . . . . . . . . . . . . . 1 . Load Schematic 8 | . . . . 2 . 2 . . . . 1 . . . . . . . . . 1 . . 2 . Build 5 | . . . . 1 . 1 . . . . . . . . . . . . . . 1 . . 2 . Repair Station Hacks . | . . . . . . . . . . . . . . . . . . . . . . . . . . Recycling Unit Hacks 3 | . . . . . . . . . . . . . . . . . . . 3 . . . . . . Process 1 | . . . . . . . . . . . . . . . . . . . 1 . . . . . . Retrieve Matter 2 | . . . . . . . . . . . . . . . . . . . 2 . . . . . . Scanalyzer 5 | . . . . 4 . . . . . . . . . . . . . . 1 . . . . . . Insert Component 2 | . . . . 1 . . . . . . . . . . . . . . 1 . . . . . . Analyze 3 | . . . . 3 . . . . . . . . . . . . . . . . . . . . . Garrison Access Hacks 7 | . . . 1 . 1 . . . . . . . . . . 2 . . 1 . . 2 . . . Unlock Access 1 | . . . . . . . . . . . . . . . . . . . 1 . . . . . . Seal Access 5 | . . . 1 . 1 . . . . . . . . . . 2 . . . . . 1 . . . Coupler Status 1 | . . . . . . . . . . . . . . . . . . . . . . 1 . . . Unauthorized Hacks 33 | . . 2 1 5 1 4 . . . . 4 . . . . 3 1 . 3 . 3 4 . 2 . Terminals 24 | . . 2 1 4 1 2 . . . . 3 . . . . 3 1 . 2 . 1 4 . . . Track 4 | . . . . . . . . . . . . . . . . 1 1 . 1 . . 1 . . . Assimilate 3 | . . . . . 1 1 . . . . . . . . . . . . . . 1 . . . . Botnet 10 | . . 1 . 3 . 1 . . . . 2 . . . . 1 . . 1 . . 1 . . . Detonate 1 | . . . . . . . . . . . . . . . . . . . . . . 1 . . . Operators 6 | . . 1 1 1 . . . . . . 1 . . . . 1 . . . . . 1 . . . Fabricators 8 | . . . . 1 . 2 . . . . 1 . . . . . . . . . 2 . . 2 . Prioritize 2 | . . . . . . . . . . . . . . . . . . . . . 1 . . 1 . Liberate 1 | . . . . . . . . . . . . . . . . . . . . . . . . 1 . Recompile 5 | . . . . 1 . 2 . . . . 1 . . . . . . . . . 1 . . . . Repair Stations . | . . . . . . . . . . . . . . . . . . . . . . . . . . Recycling Units 1 | . . . . . . . . . . . . . . . . . . . 1 . . . . . . Recyclers 1 | . . . . . . . . . . . . . . . . . . . 1 . . . . . . Scanalyzers . | . . . . . . . . . . . . . . . . . . . . . . . . . . Garrison Access . | . . . . . . . . . . . . . . . . . . . . . . . . . . Data Cores Recovered 1 | . . . . . . 1 . . . . . . . . . . . . . . . . . . . Used . | . . . . . . . . . . . . . . . . . . . . . . . . . . Hacking Detections 38 | . 1 2 2 7 3 7 . . . . 1 . . . . 4 1 . 3 . 1 3 . 3 . Full Trace Events 5 | . . . . 1 . 3 . . . . . . . . . . . . . . . . . 1 . Feedback Events 1 | . . . . . . 1 . . . . . . . . . . . . . . . . . . . Corruption 1 | . . . . . . 1 . . . . . . . . . . . . . . . . . . . Feedback Blocked . | . . . . . . . . . . . . . . . . . . . . . . . . . . Robot Schematics Acquired 3 | . . . . . . . . . 3 . . . . . . . . . . . . . . . . Robots Built . | . . . . . . . . . . . . . . . . . . . . . . . . . . Authchips . | . . . . . . . . . . . . . . . . . . . . . . . . . . Time . | . . . . . . . . . . . . . . . . . . . . . . . . . . Total Robot Build Rating . | . . . . . . . . . . . . . . . . . . . . . . . . . . Part Schematics Acquired 26 | . . . 1 1 1 . . . 11 . 2 . . 4 . 3 1 . . . 1 1 . . . Parts Built 5 | . . . . 1 . 1 . . . . . . . . . . . . . . 1 . . 2 . Authchips 4 | . . . . 1 . 1 . . . . . . . . . . . . . . 1 . . 1 . Time 262 | . . . . 44 . 44 . . . . . . . . . . . . . . 50 . . 124 . Total Part Build Rating 27 | . . . . 4 . 4 . . . . . . . . . . . . . . 5 . . 14 . Parts Repaired . | . . . . . . . . . . . . . . . . . . . . . . . . . . Time . | . . . . . . . . . . . . . . . . . . . . . . . . . . Parts Recycled . | . . . . . . . . . . . . . . . . . . . . . . . . . . Recycled Matter 28 | . . . . . . . . . . . . . . . . . . . 28 . . . . . . Retrieved Matter 28 | . . . . . . . . . . . . . . . . . . . 28 . . . . . . Retrieved Components . | . . . . . . . . . . . . . . . . . . . . . . . . . . Parts Scanalyzed 1 | . . . . 1 . . . . . . . . . . . . . . . . . . . . . Part Schematics Acquired 1 | . . . . 1 . . . . . . . . . . . . . . . . . . . . . Parts Damaged . | . . . . . . . . . . . . . . . . . . . . . . . . . . Bothacking | -11 -10 -9 -8 -7 -7 -6 -6 -6 -6 -5 -5 -5 -5 -5 -4 -4 -4 -4 -3 -3 -2 -2 -2 -1 -1 ------------ Run | Jun Mat Mat Mat Fac Sto Fac Low Low Dat Pro Fac Upp Upp Zhi Pro Fac Arm Lab Res Gar Res Qua Sec Acc Com Used RIF Installer 1 | . . . . . . . . . . . . . . . . . . . . 1 . . . . . Robots Hacked 3 | . . . . . . . . . . . . . . . . . . 1 . . . . 2 . . Non-combat . | . . . . . . . . . . . . . . . . . . . . . . . . . . Combat 2 | . . . . . . . . . . . . . . . . . . . . . . . 2 . . Robot Hacks Applied 2 | . . . . . . . . . . . . . . . . . . . . . . . 2 . . overwrite_iff 1 | . . . . . . . . . . . . . . . . . . . . . . . 1 . . formatsys_high 1 | . . . . . . . . . . . . . . . . . . . . . . . 1 . . Manual 1 | . . . . . . . . . . . . . . . . . . 1 . . . . . . . Relay Couplers Released . | . . . . . . . . . . . . . . . . . . . . . . . . . . Attached 3 | . . . . . . . . . . . . . . . . . . . . . . . 3 . . Fabnet Peak Effective % . | . . . . . . . . . . . . . . . . . . . . . . . . . . Robots Rewired . | . . . . . . . . . . . . . . . . . . . . . . . . . . Allies Hacked . | . . . . . . . . . . . . . . . . . . . . . . . . . . Hacks Repelled . | . . . . . . . . . . . . . . . . . . . . . . . . . . Allies | -11 -10 -9 -8 -7 -7 -6 -6 -6 -6 -5 -5 -5 -5 -5 -4 -4 -4 -4 -3 -3 -2 -2 -2 -1 -1 -------- Run | Jun Mat Mat Mat Fac Sto Fac Low Low Dat Pro Fac Upp Upp Zhi Pro Fac Arm Lab Res Gar Res Qua Sec Acc Com Total Allies 4 | . . . . . . 1 . . . . . . . . . . . . . . 1 . 2 . . Largest Group 1 | . . . . . . 1 . . . . . . . . . . . . . . 1 . 1 . . Highest-Rated Group 84 | . . . . . . 10 . . . . . . . . . . . . . . 45 . 84 . . Highest-Rated Ally 84 | . . . . . . 10 . . . . . . . . . . . . . . 45 . 84 . . Total Orders . | . . . . . . . . . . . . . . . . . . . . . . . . . . Ally Attacks 8 | . . . . . . . . . . . . . . . . . . . . . . . 8 . . Total Damage 323 | . . . . . . . . . . . . . . . . . . . . . . . 323 . . Kills . | . . . . . . . . . . . . . . . . . . . . . . . . . . Allies Corrupted . | . . . . . . . . . . . . . . . . . . . . . . . . . . Allies Melted . | . . . . . . . . . . . . . . . . . . . . . . . . . . Intel | -11 -10 -9 -8 -7 -7 -6 -6 -6 -6 -5 -5 -5 -5 -5 -4 -4 -4 -4 -3 -3 -2 -2 -2 -1 -1 ------- Run | Jun Mat Mat Mat Fac Sto Fac Low Low Dat Pro Fac Upp Upp Zhi Pro Fac Arm Lab Res Gar Res Qua Sec Acc Com Robot Analysis Total 132 | . . 1 . . . . . . 131 . . . . . . . . . . . . . . . . Derelict Logs Recovered 7 | . . . . . . . 1 1 . 2 . 1 1 . 1 . . . . . . . . . . Drone Launches . | . . . . . . . . . . . . . . . . . . . . . . . . . . Drone Recoveries . | . . . . . . . . . . . . . . . . . . . . . . . . . . Exploration | -11 -10 -9 -8 -7 -7 -6 -6 -6 -6 -5 -5 -5 -5 -5 -4 -4 -4 -4 -3 -3 -2 -2 -2 -1 -1 ------------- Run | Jun Mat Mat Mat Fac Sto Fac Low Low Dat Pro Fac Upp Upp Zhi Pro Fac Arm Lab Res Gar Res Qua Sec Acc Com Turns Passed 6464 | 94 164 1666 600 1187 163 396 174 225 49 85 77 130 84 38 168 75 124 216 66 55 149 101 241 114 23 Spaces Moved 10096 | 54 75 596 313 1302 455 997 513 681 102 240 244 281 352 147 517 290 191 289 236 173 485 300 766 413 84 Core 25 | 1 . . . 24 . . . . . . . . . . . . . . . . . . . . . Treads 1311 | 53 75 596 313 274 . . . . . . . . . . . . . . . . . . . . . Legs . | . . . . . . . . . . . . . . . . . . . . . . . . . . Wheels . | . . . . . . . . . . . . . . . . . . . . . . . . . . Hover . | . . . . . . . . . . . . . . . . . . . . . . . . . . Flight 8760 | . . . . 1004 455 997 513 681 102 240 244 281 352 147 517 290 191 289 236 173 485 300 766 413 84 Fastest Speed 5 | 50 160 240 160 26 26 15 20 20 20 20 21 21 21 21 21 21 21 21 19 19 18 5 5 16 16 Average Speed 46 | 157 216 240 173 65 26 22 20 20 20 20 21 27 22 21 21 21 21 27 19 19 18 17 19 19 16 Slowest Speed 250 | 160 240 240 240 250 26 26 20 20 20 25 21 30 30 21 21 88 21 88 86 19 19 18 89 26 16 Overloaded Moves 182 | . . . . . . 5 . . . . . . . . . . . . . . . 12 165 . . Propulsion Burnouts . | . . . . . . . . . . . . . . . . . . . . . . . . . . Robots Hopped 56 | . . . . 8 16 4 1 . . . . . . . . 2 . . . . 2 1 8 14 . Cave-ins Triggered . | . . . . . . . . . . . . . . . . . . . . . . . . . . Teleports 2 | . . . . . . . . . . . . . . . . . 1 . . . . . 1 . . Exploration Rate (%) 41 | 4 21 50 33 32 59 34 61 80 82 35 13 48 64 61 77 15 18 100 8 35 19 52 60 10 7 Regions Visited 25 Branch Regions 14 Pre-discovered Areas 34 | . . . . . . . . . 30 1 . . . 3 . . . . . . . . . . . Known Exits Taken 7 | . . . . . 1 1 . . . 1 1 . . . . 1 . . 1 . 1 . . . . Unknown Exits Taken 17 | 1 1 1 1 1 . . 1 1 1 . . 1 1 1 1 . 1 1 . . . 1 1 1 . Scrap Searched 9 | . . . . . . . 2 3 . . . . 3 . 1 . . . . . . . . . . Spaces Dug 87 | . . . 2 22 2 7 4 10 . . 1 1 . . 4 2 4 1 3 2 5 7 5 5 . Terrain Destroyed 169 | . . 64 5 30 2 7 4 10 . . 1 1 . . 9 2 4 1 3 2 5 8 6 5 . Melee 81 | . . . . 22 2 7 4 10 . . 1 1 . . 3 2 4 1 3 2 5 6 3 5 . Projectile 22 | . . 3 5 3 . . . . . . . . . . 6 . . . . . . 2 3 . . AOE 66 | . . 61 . 5 . . . . . . . . . . . . . . . . . . . . . Terrain Rammed . | . . . . . . . . . . . . . . . . . . . . . . . . . . Walls Destroyed . | . . . . . . . . . . . . . . . . . . . . . . . . . . Machines Disabled . | . . . . . . . . . . . . . . . . . . . . . . . . . . Actions | -11 -10 -9 -8 -7 -7 -6 -6 -6 -6 -5 -5 -5 -5 -5 -4 -4 -4 -4 -3 -3 -2 -2 -2 -1 -1 --------- Run | Jun Mat Mat Mat Fac Sto Fac Low Low Dat Pro Fac Upp Upp Zhi Pro Fac Arm Lab Res Gar Res Qua Sec Acc Com Total 11271 | 60 78 736 352 1504 472 1134 561 727 120 265 265 329 354 153 564 295 265 402 254 186 530 329 824 420 92 Wait 511 | . . 32 3 73 26 62 31 18 5 9 4 47 2 . 30 2 62 68 . . 26 . 5 6 . Move 9965 | 53 74 595 312 1285 423 988 510 680 101 239 243 280 351 146 516 285 190 288 236 172 480 297 749 389 83 Hop 50 | . . . . 8 15 4 1 . . . . . . . . 2 . . . . 2 1 8 9 . Pick Up 104 | 1 2 21 8 13 . 8 1 3 4 2 5 . . 1 1 1 . 7 1 4 3 5 8 4 1 Fast Attach 82 | 6 1 6 2 16 1 13 . 1 . 4 4 . 1 2 . 1 1 8 1 . 3 . 4 5 2 Attach 66 | . . 1 2 11 . 4 . 2 1 1 2 . . . 3 1 2 3 5 . 3 6 14 2 3 Detach 23 | . . 1 . 1 . 1 1 . . . . . . . 2 1 . 2 5 . . 3 6 . . Swap 62 | . . 12 4 14 1 4 8 . 1 1 3 . . 1 2 . 5 . . 1 . 3 1 . 1 Drop 108 | . 1 15 9 20 1 16 . 2 3 4 3 . . 3 1 . 1 10 1 3 5 1 7 . 2 Fire 121 | . . 53 12 33 . . . . . . . . . . 6 . . 1 . . . 4 12 . . Melee 158 | . . . . 30 5 16 9 21 5 5 1 2 . . 3 2 4 15 3 6 8 9 9 5 . Ram 1 | . . . . . . . . . . . . . . . . . . . . . . . 1 . . Kick . | . . . . . . . . . . . . . . . . . . . . . . . . . . Crush . | . . . . . . . . . . . . . . . . . . . . . . . . . . Escape Stasis 20 | . . . . . . 18 . . . . . . . . . . . . 2 . . . . . . Rewire . | . . . . . . . . . . . . . . . . . . . . . . . . . . Trap . | . . . . . . . . . . . . . . . . . . . . . . . . . . Miscellaneous . | . . . . . . . . . . . . . . . . . . . . . . . . . . Route ------- -11/Junkyard -10/Materials -9/Materials (discovered 2 exits: *Mat / *Min) -8/Materials -7/Factory (discovered 5 exits: *Fac x4 / *Sto) -7/Storage -6/Factory (discovered 2 exits: *Low x2) -6/Lower Caves -6/Lower Caves -6/Data Miner -5/Proximity Caves -5/Factory (discovered 4 exits: *Upp x2 / Ext x2) -5/Upper Caves -5/Upper Caves (discovered 2 exits: *Fac / *Zhi) -5/Zhirov -4/Proximity Caves -4/Factory (discovered 3 exits: *Upp x2 / *Arm) -4/Armory -4/Lab -3/Research (discovered 6 exits: Res x3 / *Tes x2 / Gar) -3/Garrison -2/Research (discovered 3 exits: *Acc / *Qua x2) -2/Quarantine (discovered 2 exits: *Acc / *Sec) -2/Section 7 -1/Access -1/Command To Epsilon Eridani History --------- Turn | Location | Event 27 | -11/Junkyard | Discovered new exit (range 15) 95 | -11/Junkyard | Entered Materials 235 | -10/Materials | Discovered new exit (range 11) 259 | -10/Materials | Entered another Materials area 259 | -9/Materials | Evolved 2 slots: Utility x2 288 | -9/Materials | Identified exit to Mines 288 | -9/Materials | Central database locked down 327 | -9/Materials | Build established: Mutant 633 | -9/Materials | Discovered new exit (range 15) 1925 | -9/Materials | Entered another Materials area 1925 | -8/Materials | Evolved 2 slots: Propulsion x2 2352 | -8/Materials | Build established: Scavenger-Mutant 2509 | -8/Materials | Discovered new exit (range 9) 2525 | -8/Materials | Entered Factory 2525 | -7/Factory | Evolved 2 slots: Utility x2 3245 | -7/Factory | Lost 9 parts (1p3n4u1w) 3334 | -7/Factory | Core integrity fell below 50% 3496 | -7/Factory | Discovered new exit (range 12) 3556 | -7/Factory | Fabricated Cld. VTOL Module (x1) 3564 | -7/Factory | Identified exit to Factory 3615 | -7/Factory | Discovered new exit (range 8) 3712 | -7/Factory | Entered Storage 3871 | -7/Storage | Discovered exit to Factory (range 16) 3875 | -7/Storage | Entered Factory 3875 | -6/Factory | Evolved 2 slots: Propulsion x2 4152 | -6/Factory | Fabricated Cld. VTOL Module (x1) 4242 | -6/Factory | Identified exit to Lower Caves 4271 | -6/Factory | Entered Lower Caves 4307 | -6/Lower Caves | Attracted the attention of an 0b10 checkpoint 4409 | -6/Lower Caves | Discovered new exit (range 14) 4445 | -6/Lower Caves | Entered another Lower Caves area 4552 | -6/Lower Caves | Encountered a Warlord checkpoint 4553 | -6/Lower Caves | Spotted B-75 Beast 4559 | -6/Lower Caves | Learned Factory stockpile data 4584 | -6/Lower Caves | Discovered new exit (range 13) 4670 | -6/Lower Caves | Entered Data Miner 4673 | -6/Data Miner | Discovered new exit (range 6) 4676 | -6/Data Miner | Met Data Miner 4685 | -6/Data Miner | Learned location of Section 7 (-2) 4685 | -6/Data Miner | Acquired the access code to Warlord's prototype stash 4688 | -6/Data Miner | Received God Mode back door access code from Data Miner 4692 | -6/Data Miner | Destroyed Data Miner 4695 | -6/Data Miner | Found Prototype Hackware 4697 | -6/Data Miner | Found Prototype Hackware 4698 | -6/Data Miner | Interfaced with the Data Conduit 4698 | -6/Data Miner | Found Prototype Hackware 4719 | -6/Data Miner | Build established: Sprinter 4719 | -6/Data Miner | Entered Proximity Caves 4768 | -5/Proximity Caves | Identified exit to Factory 4787 | -5/Proximity Caves | Found Exp. Force Field 4804 | -5/Proximity Caves | Entered Factory 4804 | -5/Factory | Evolved 2 slots: Utility x2 4805 | -5/Factory | Identified exit to Upper Caves 4807 | -5/Factory | Loaded intel: 285 machine locations 4809 | -5/Factory | Identified Ghost Barrier 4810 | -5/Factory | Identified System Mapper 4819 | -5/Factory | Identified Deep Network Scanner 4822 | -5/Factory | Identified exit to Extension 4841 | -5/Factory | Spotted B-75 Beast 4881 | -5/Factory | Entered Upper Caves 4994 | -5/Upper Caves | Learned Factory terminal intel 4997 | -5/Upper Caves | Discovered new exit (range 6) 5011 | -5/Upper Caves | Entered another Upper Caves area 5015 | -5/Upper Caves | Discovered new exit (range 8) 5016 | -5/Upper Caves | Spotted B-75 Beast 5066 | -5/Upper Caves | Encountered a Warlord checkpoint 5069 | -5/Upper Caves | Learned Factory terminal intel 5081 | -5/Upper Caves | Discovered new exit (range 13) 5095 | -5/Upper Caves | Entered Zhirov 5095 | -5/Zhirov | Discovered new exit (range 3) 5099 | -5/Zhirov | Met Zhirov 5105 | -5/Zhirov | Zhirov requested help retrieving the SGEMP Prototype 5110 | -5/Zhirov | Found Alien Artifact 5114 | -5/Zhirov | Found Alien Artifact 5114 | -5/Zhirov | Identified Integrated Reactor 5114 | -5/Zhirov | Installed Integrated Reactor, increased core energy generation (+10) 5133 | -5/Zhirov | Entered Proximity Caves 5134 | -4/Proximity Caves | Spotted B-86 Titan 5234 | -4/Proximity Caves | Build established: Wizard-Sprinter 5288 | -4/Proximity Caves | Discovered new exit (range 20) 5294 | -4/Proximity Caves | Learned 8 Research zone layouts 5301 | -4/Proximity Caves | Entered Factory 5301 | -4/Factory | Evolved 2 slots: Utility x2 5302 | -4/Factory | Loaded intel: 302 machine locations 5303 | -4/Factory | Loaded intel: 26 terminal locations 5313 | -4/Factory | Identified exit to Upper Caves 5313 | -4/Factory | Identified exit to Armory 5316 | -4/Factory | Spotted B-86 Titan 5336 | -4/Factory | Central database locked down 5376 | -4/Factory | Entered Armory 5377 | -4/Armory | Loaded intel: 89 machine locations 5416 | -4/Armory | Identified Transdimensional Reconstructor 5416 | -4/Armory | Warped through subspace to slip node 5416 | -4/Armory | Discovered new exit (range 1) 5500 | -4/Armory | Entered Lab 5500 | -4/Lab | Discovered new exit (range 9) 5503 | -4/Lab | Hidden lab's door opened automatically 5503 | -4/Lab | Sensor layout match revealed 5504 | -4/Lab | Gained access to the hidden lab's interior 5512 | -4/Lab | Found Alien Artifact 5521 | -4/Lab | Found Integrated Reactor 5521 | -4/Lab | Installed Integrated Reactor, increased core energy generation (+10) 5530 | -4/Lab | Found Alien Artifact 5545 | -4/Lab | Found Transdimensional Reconstructor 5554 | -4/Lab | Found Prototype Special Weapon 5560 | -4/Lab | Found Prototype Energy Cannon 5560 | -4/Lab | Identified Potential Cannon 5562 | -4/Lab | Found Prototype Energy Cannon 5562 | -4/Lab | Identified Warp Cannon 5569 | -4/Lab | Decrypted terminal 5569 | -4/Lab | Acquired modification code for an L2 power cell 5577 | -4/Lab | Found Prototype Hackware 5581 | -4/Lab | Found Prototype Device 5581 | -4/Lab | Identified AEGIS Remote Shield 5591 | -4/Lab | Identified Core Regenerator 5591 | -4/Lab | Used Core Regenerator, restored core integrity (+175) 5624 | -4/Lab | Detected for breach 5627 | -4/Lab | Identified Gui. Remote Datajack 5628 | -4/Lab | Decrypted terminal 5629 | -4/Lab | Found Alien Artifact 5629 | -4/Lab | Identified LC Capacitor 5702 | -4/Lab | Destroyed A5 with code downloaded from Data Conduit 5703 | -4/Lab | Confronted by A5 5716 | -4/Lab | Entered Research 5716 | -3/Research | Evolved 2 slots: Propulsion x1, Utility x1 5718 | -3/Research | Loaded intel: 100 machine locations 5731 | -3/Research | Discovered new exit (range 22) 5755 | -3/Research | Identified Core Reset Matrix 5764 | -3/Research | Identified exit to Testing 5764 | -3/Research | Identified exit to Research 5777 | -3/Research | Identified Quantum Router 5782 | -3/Research | Identified exit to Garrison 5782 | -3/Research | Entered Garrison 5783 | -3/Garrison | Loaded intel: 37 machine locations 5812 | -3/Garrison | Found Relay Coupler [Proto] 5814 | -3/Garrison | Found Relay Coupler [Proto] 5815 | -3/Garrison | Found Relay Coupler [Proto] 5816 | -3/Garrison | Found Relay Coupler [Proto] 5830 | -3/Garrison | Discovered exit to Research (range 12) 5831 | -3/Garrison | Installed Relay Interface Framework 5837 | -3/Garrison | Entered Research 5837 | -2/Research | Evolved 2 slots: Utility x2 5838 | -2/Research | Loaded intel: 103 machine locations 5848 | -2/Research | Identified exit to Quarantine 5855 | -2/Research | Spotted B-90 Cyclops 5885 | -2/Research | Discovered new exit (range 5) 5897 | -2/Research | Spotted B-90 Cyclops 5923 | -2/Research | Fabricated Exp. Propulsion Shielding (x1) 5986 | -2/Research | Entered Quarantine 5987 | -2/Quarantine | Loaded intel: 66 machine locations 5991 | -2/Quarantine | Found Alien Artifact 5992 | -2/Quarantine | Identified Phase Redirector 6036 | -2/Quarantine | Found Alien Artifact 6042 | -2/Quarantine | Discovered new exit (range 14) 6052 | -2/Quarantine | Found Transdimensional Reconstructor 6053 | -2/Quarantine | Found Alien Artifact 6054 | -2/Quarantine | Identified Dimensional Node Initializer 6054 | -2/Quarantine | Initialized slip node 6057 | -2/Quarantine | Found Dimensional Node Initializer 6062 | -2/Quarantine | Scanned by Researcher 6075 | -2/Quarantine | Spotted Fortress 6086 | -2/Quarantine | Discovered new exit (range 5) 6087 | -2/Quarantine | Entered Section 7 6088 | -2/Section 7 | Loaded intel: 145 machine locations 6089 | -2/Section 7 | Spotted S7 Guard 6095 | -2/Section 7 | Lost 4 parts (3u1w) 6095 | -2/Section 7 | Found Alien Artifact 6106 | -2/Section 7 | Found Alien Artifact 6106 | -2/Section 7 | Identified Microwarp Drive 6121 | -2/Section 7 | Spotted S7 Guard 6131 | -2/Section 7 | Found Alien Artifact 6141 | -2/Section 7 | Found Alien Artifact 6152 | -2/Section 7 | Identified Integrity Redistributor 6152 | -2/Section 7 | Used Integrity Redistributor, redistributed integrity from core (-121) 6181 | -2/Section 7 | Found Alien Artifact 6185 | -2/Section 7 | Identified Integrated Mediator 6185 | -2/Section 7 | Installed Integrated Mediator, increased core attachment efficiency. 6191 | -2/Section 7 | Discovered new exit (range 13) 6193 | -2/Section 7 | Initialized slip node 6197 | -2/Section 7 | Intercept squad dispatched 6198 | -2/Section 7 | Spotted Tracker 6199 | -2/Section 7 | Spotted Tracker 6199 | -2/Section 7 | Spotted Combat Programmer 6200 | -2/Section 7 | Spotted B-90 Cyclops 6211 | -2/Section 7 | Spotted Alpha 7 6211 | -2/Section 7 | Spotted Alpha 7 6219 | -2/Section 7 | Spotted B-99 Colossus 6225 | -2/Section 7 | Assimilated Tracker with formatsys_high 6244 | -2/Section 7 | Found Alien Energy Cannon 6245 | -2/Section 7 | Installed L-Cannon capacitor 6258 | -2/Section 7 | Spotted Combat Programmer 6291 | -2/Section 7 | Intercept squad dispatched 6298 | -2/Section 7 | Found Alien Artifact 6306 | -2/Section 7 | Spotted Tracker 6307 | -2/Section 7 | Spotted Tracker 6316 | -2/Section 7 | Warped through subspace to slip node 6323 | -2/Section 7 | Spotted Combat Programmer 6328 | -2/Section 7 | Entered Access 6328 | -1/Access | Evolved 2 slots: Utility x2 6329 | -1/Access | Loaded intel: 108 machine locations 6388 | -1/Access | Found Exp. Force Field 6408 | -1/Access | Fabricated Exp. Q-thruster? 6413 | -1/Access | Build established: Hacker-Sprinter 6423 | -1/Access | Fabricated Exp. Propulsion Shielding (x1) 6441 | -1/Access | Discovered new exit (range 8) 6442 | -1/Access | Entered Command 6442 | -1/Command | Identified LRC Boosters 6442 | -1/Command | Installed LRC Boosters, increased mass support (+10) 6443 | -1/Command | Loaded intel: 56 machine locations 6443 | -1/Command | Identified Core Membrane 6443 | -1/Command | Installed Core Membrane, gained immunity to corruption 6444 | -1/Command | Lost 6 parts (2n2u2w) 6447 | -1/Command | Identified Subatomic Replicator 6447 | -1/Command | Used Subatomic Replicator to replicate Alien Artifact 6448 | -1/Command | Identified Navigation Efficiency Matrix 6448 | -1/Command | Installed Navigation Efficiency Matrix, process failed with unexpected side effects 6449 | -1/Command | Installed Navigation Efficiency Matrix, process failed with unexpected side effects 6465 | -1/Command | Discovered new exit (range 3) 6465 | *** | Escaped! Last Messages --------------- 06442_ ALERT: Rogue bot within command proximity. Terminate immediately. 06442_ Identified LRC Boosters. 06442_ LRC Boosters installed, mass support increased (+10). Loading Command machine intel (x56)... 06443_ Identified Core Membrane. 06443_ Core Membrane installed, core corruption filter active. 06444_ Dropped Alien Artifact. 06446_ Acquired Alien Artifact. 06447_ Identified Subatomic Replicator. 06447_ Replicated Alien Artifact. 06448_ Acquired Alien Artifact. 06448_ Identified Navigation Efficiency Matrix. 06448_ Navigation Efficiency Matrix installed, partial failure due to system anomalies. 06449_ Acquired Navigation Efficiency Matrix. 06449_ Navigation Efficiency Matrix augmented, partial failure due to system anomalies. 06455_ Exp. Heat Sink destroyed. 06455_ Navigation matrix triggers involuntary quantum shift. 06465_ EXIT=FOUND Map ----- +----------------------------------------------------+ | ???????????????????????????????????????# | | ??????????????????????????????##############+##### | | ??????????????????????????????# / # | | ??????????????????????????????# # | | ??????????????????????????????# """" """" # | | ??????????????????????????????# """" """" # | | ???????????????????????????????? """" """" # | | ?????????????????????????????????"""" """" # | | ?????????????????????????????????? # | | ????????????????????????????????? # | | ???????????????""???????????????################## | | ???????????????"""????????????????????????????# | | ???????????????"R?????????????????????????????# | | ???????????????"""????????????????????????????# | | ???????????????""?????????????????????????????? " | | ??????????????????????????????????????????????# " | | ??????????????????????????????????????????????# " | | ??????????????????????????????????????????????# " | | ??????????????????????????????????????????????# | | ??????????????????????????????????????????????# | | ??????????????????????????????????????????????# | | ??????????????????????????????????????????????# | | ??????????????????????????????????????????????# | | ??????????????????????""""""????????????????###### | | ??????????????????????" "????????????????# | | ??????????????????????" "@ "????????????????# | | ??????????????????????" "" "????????????????# | | ??????????????????????" "????????????????# | | ??????????????????????""""""????????????????+ | | ????????????????????????????????????????????# | | ????????????????????????????????????????????###### | | ?????????????????????????????????????????????????? | | ?????????????????????????????????????????????????? | | ?????????????????????????????????????????????????? | | ?????????????????????????????????????????????????? | | ?????????????????????????????????????????????????? | | ?????????????????????????????????????????????????? | | ?????????????????????????????????????????????????? | | ?????????????????????????????????????????????????? | | ?????????????????????????????????????????????????? | | ??""?????????????????????????????????????????????? | | ?""""????????????????????????????????????????????? | | ?""""????????????????????????????????????????????? | | ??""?????????????????????????????????????????????? | | ?????????????????????????????????????????????????? | | ?????????????????????????????????????????????????? | | ?????????????????????????????????????????????????? | | ?????????????????????????????????????????????????? | | ?????????????????????????????????????????????????? | | ?????????????????????????????????????????????????? | +----------------------------------------------------+ Best States ------------- Heat Dissipation 78 Energy Generation 45 Energy Capacity 350 Matter Stores 300 Matter Capacity 300 Sight Range 22 Robot Scan Range 16 Terrain Scan Range 14 Terrain Scan Density 210 ECM Strength 1 Jamming Range 12 Cloak Strength 3 Additional Mass Support 12 Armor Coverage 900 Resistance: EM 15 Propulsion Shielding 90 Utility Shielding 66 Phase Shifting 15 Evasion (%) 86 Targeting Accuracy 8 Core Analysis 6 Recoil Reduction 4 Offensive Hacking 69 Defensive Hacking 45 Relay Coupler Types 1 Relay Coupler Value 13 Authchip Count 3 Item Schematics ----------------- Huge Storage Unit | -8/Materials | Hacked Cld. VTOL Module | -7/Factory | Scanalyzed Transmission Jammer | -7/Storage | Hacked Combat Drone Bay | -6/Data Miner | Free Lgt. Regenerative Plating | -6/Data Miner | Free Cld. Nuclear Pulse Thruster | -6/Data Miner | Free Imp. Matter Compressor | -6/Data Miner | Free Enh. Coil Gun | -6/Data Miner | Free Adv. Medium Treads | -6/Data Miner | Free Antimatter Reactor | -6/Data Miner | Free Adv. Transmission Jammer | -6/Data Miner | Free Matter Neutralizer | -6/Data Miner | Free Gamma Rifle | -6/Data Miner | Free Imp. Phase Shifter | -6/Data Miner | Free Biomechanical Wings | -5/Factory | Hacked Imp. Powered Armor | -5/Factory | Hacked Assault Drone Bay | -5/Zhirov | Free Exp. Heat Sink | -5/Zhirov | Free Exp. Optical Array | -5/Zhirov | Free Imp. Arc Thrower | -5/Zhirov | Free Adv. Thermal Generator | -4/Factory | Hacked Exp. Propulsion Shielding | -4/Factory | Hacked Exp. Utility Shielding | -4/Factory | Hacked Imp. Fusion Compressor | -4/Armory | Hacked Exp. Q-thruster | -2/Research | Hacked Adv. Variable Charge Gun | -2/Quarantine | Archive Robot Schematics ------------------ A-15 Conveyor | -6/Data Miner | Free B-60 Warrior | -6/Data Miner | Free G-50 Soldier | -6/Data Miner | Free Fabricated ------------ Cld. VTOL Module | x1 | -7/Factory | Authchip Cld. VTOL Module | x1 | -6/Factory | Authchip Exp. Propulsion Shielding | x1 | -2/Research | Authchip Exp. Q-thruster | x1 | -1/Access | Authchip Exp. Propulsion Shielding | x1 | -1/Access Alien Tech Used ----------------- Integrated Reactor Transdimensional Reconstructor Core Regenerator LC Capacitor Phase Redirector Dimensional Node Initializer Microwarp Drive Integrity Redistributor Integrated Mediator LRC Boosters Core Membrane Subatomic Replicator Navigation Efficiency Matrix Achievements -------------- None Challenges ------------ None Game ------ Seed TeslaSurgeDisintegrator Manual? 0 Play Time 02:32:14 Cumulative 413.4 hours Start 2023.03.07 @ 11:35:35 End 2023.03.07 @ 14:47:23 Sessions 3 Manual Loads 0 Difficulty Rogue Special Mode None Game No. 444 Rogue 435 Adventurer 8 Explorer 1 Win Type 0 Total 7 Types 4/1/2/0/0/0/0/0/0 Lore% 78 Gallery% 89 Achievement% 71 Wizard Run 0 Options --------- ASCII 0 Keyboard 0 Movement Numpad Keybinds 1 Fullscreen 2 Font 18/Terminus Map View 76x50 Tactical HUD 1 Map Filters NONE Filters NONE Steam 1 RUN: 41b0d82f-1cbf-40e3-97a8-edff83303ff7